[Event "Skalica Masters 2020"]
[Site "Skalica"]
[Date "2020.08.27"]
[Round "6.1"]
[White "Jablonicky, Martin"]
[Black "Saric, Ivan"]
[Result "0-1"]
[ECO "D45"]
[WhiteElo "2314"]
[BlackElo "2646"]
[Annotator "ChessBase"]
[PlyCount "92"]
[EventDate "2020.08.23"]
[EventType "tourn"]
[EventCountry "SVK"]
[SourceTitle "playchess.com"]
[Source "ChessBase"]
[SourceQuality "1"]
[TimeControl "40/5400+30:1800+30"]

1. Nf3 {[%emt 0:00:00]} d5 {[%emt 0:00:19]} 2. d4 {[%emt 0:00:00]} Nf6 {[%emt 0:00:06]} 3. c4 {[%emt 0:00:00]} e6 {[%emt 0:00:07]} 4. Nc3 {[%emt 0:00:00]} c6 {[%emt 0:00:06]} 5. e3 {[%emt 0:00:03]} Nbd7 {[%emt 0:00:05]} 6. Qc2 {[%emt 0:00:22]} Bd6 {[%emt 0:00:08]} 7. b3 {[%emt 0:00:16]} O-O {[%emt 0:00:08]} 8. Bb2 {[%emt 0:00:03]} e5 {[%emt 0:01:19]} 9. cxd5 {[%emt 0:00:44]} cxd5 {[%emt 0:00:19]} 10. dxe5 {[%emt 0:00:24]} Nxe5 {[%emt 0:00:08]} 11. Be2 {[%emt 0:01:29]} Re8 {[%emt 0:11:41]} 12. O-O {[%emt 0:01:26]} Bg4 {[%emt 0:01:55]} 13. Nxe5 {[%emt 0:04:46]} Bxe5 {[%emt 0:02:29]} 14. Bxg4 {[%emt 0:02:12]} Nxg4 {[%emt 0:20:01]} 15. h3 {[%emt 0:00:19]} Nf6 {[%emt 0:02:10]} 16. Ne2 {[%emt 0:01:19]} Rc8 {[%emt 0:00:05]} 17. Qb1 {[%emt 0:00:05]} Bb8 {[%emt 0:00:30]} 18. Bxf6 {[%emt 0:02:09]} Qxf6 {[%emt 0:00:05]} 19. Qd3 {[%emt 0:00:05]} Rcd8 {[%emt 0:04:53]} 20. Rac1 {[%emt 0:02:19]} h5 {[%emt 0:06:52]} 21. Rfd1 {[%emt 0:03:27]} Qe5 {[%emt 0:01:42]} 22. Kf1 {[%emt 0:10:37]} Qh2 {[%emt 0:04:55]} 23. Qf5 {[%emt 0:06:54]} Qh1+ {[%emt 0:01:39]} 24. Ng1 {[%emt 0:00:07]} Bh2 {[%emt 0:04:38]} 25. Ke2 {[%emt 0:02:29]} Qxg2 {[%emt 0:00:16]} 26. Nf3 {[%emt 0:01:01]} g6 {[%emt 0:03:28]} 27. Qg5 {[%emt 0:07:54]} Qxg5 {[%emt 0:00:10]} 28. Nxg5 {[%emt 0:00:04]} Be5 {[%emt 0:00:59]} 29. Nf3 {[%emt 0:00:14]} Bf6 {[%emt 0:00:26]} 30. Rc7 {[%emt 0:01:31]} d4 {[%emt 0:01:56]} 31. Rd3 {[%emt 0:02:46]} dxe3 {[%emt 0:00:51]} 32. Rxe3 {[%emt 0:01:08]} Rb8 {[%emt 0:05:04]} 33. h4 {[%emt 0:07:09]} Rec8 {[%emt 0:00:28]} 34. Rd7 {[%emt 0:00:05]} Rc2+ {[%emt 0:00:13]} 35. Kf1 {[%emt 0:00:05]} Rxa2 {[%emt 0:01:14]} 36. Ng5 {[%emt 0:00:05]} Ra1+ {[%emt 0:00:52]} 37. Kg2 {[%emt 0:00:14]} Bxg5 {[%emt 0:00:28]} 38. hxg5 {[%emt 0:00:08]} Ra5 {[%emt 0:00:04]} 39. f4 {[%emt 0:00:32]} Rf5 {[%emt 0:00:17]} 40. Kg3 {[%emt 0:00:25]} a5 {[%emt 0:00:30]} 41. Re5 {[%emt 0:35:59]} Rxe5 {[%emt 0:30:56]} 42. fxe5 {[%emt 0:00:05]} b5 {[%emt 0:03:45]} 43. Kf4 {[%emt 0:00:05]} a4 {[%emt 0:04:27]} 44. bxa4 {[%emt 0:00:04]} bxa4 {[%emt 0:00:03]} 45. e6 {[%emt 0:01:18]} Rb4+ {[%emt 0:01:53]} 46. Ke5 {[%emt 0:00:59]} Rb5+ {[%emt 0:00:07]} 0-1

[Event "Skalica Masters 2020"]
[Site "Skalica"]
[Date "2020.08.27"]
[Round "6.2"]
[White "Yankelevich, Lev"]
[Black "Druska, Juraj"]
[Result "0-1"]
[ECO "D41"]
[WhiteElo "2461"]
[BlackElo "2515"]
[Annotator "ChessBase"]
[PlyCount "90"]
[EventDate "2020.08.23"]
[EventType "tourn"]
[EventCountry "SVK"]
[SourceTitle "playchess.com"]
[Source "ChessBase"]
[SourceQuality "1"]
[TimeControl "40/5400+30:1800+30"]

1. d4 {[%emt 0:00:00]} d5 {[%emt 0:02:17]} 2. c4 {[%emt 0:00:00]} e6 {[%emt 0:00:06]} 3. Nf3 {[%emt 0:00:07]} Nf6 {[%emt 0:00:22]} 4. Nc3 {[%emt 0:00:11]} c5 {[%emt 0:01:24]} 5. cxd5 {[%emt 0:00:14]} Nxd5 {[%emt 0:00:06]} 6. e4 {[%emt 0:00:03]} Nxc3 {[%emt 0:00:06]} 7. bxc3 {[%emt 0:00:03]} cxd4 {[%emt 0:00:07]} 8. cxd4 {[%emt 0:00:02]} Bb4+ {[%emt 0:00:07]} 9. Bd2 {[%emt 0:00:04]} Bxd2+ {[%emt 0:00:05]} 10. Qxd2 {[%emt 0:00:01]} O-O {[%emt 0:00:10]} 11. Bc4 {[%emt 0:00:03]} Nd7 {[%emt 0:00:27]} 12. O-O {[%emt 0:00:05]} b6 {[%emt 0:00:03]} 13. Rad1 {[%emt 0:00:07]} Bb7 {[%emt 0:00:27]} 14. Rfe1 {[%emt 0:00:03]} Rc8 {[%emt 0:00:10]} 15. Bb3 {[%emt 0:00:03]} Re8 {[%emt 0:03:00]} 16. h3 {[%emt 0:02:43]} h6 {[%emt 0:25:34]} 17. Re3 {[%emt 0:02:29]} Qc7 {[%emt 0:13:03]} 18. e5 {[%emt 0:23:40]} Red8 {[%emt 0:00:36]} 19. d5 {[%emt 0:00:45]} Bxd5 {[%emt 0:01:42]} 20. Bxd5 {[%emt 0:00:08]} Nc5 {[%emt 0:01:19]} 21. Qe2 {[%emt 0:02:00]} Rxd5 {[%emt 0:00:58]} 22. Rxd5 {[%emt 0:00:05]} exd5 {[%emt 0:00:04]} 23. Qd1 {[%emt 0:06:19]} Rd8 {[%emt 0:04:04]} 24. Nd4 {[%emt 0:01:46]} Ne6 {[%emt 0:08:43]} 25. Rd3 {[%emt 0:06:14]} Nxd4 {[%emt 0:01:00]} 26. Rxd4 {[%emt 0:00:02]} Qxe5 {[%emt 0:00:09]} 27. a4 {[%emt 0:00:07]} Rd6 {[%emt 0:03:28]} 28. g3 {[%emt 0:00:21]} g6 {[%emt 0:02:18]} 29. h4 {[%emt 0:00:30]} h5 {[%emt 0:04:55]} 30. Qd2 {[%emt 0:01:05]} Kg7 {[%emt 0:07:58]} 31. Qd1 {[%emt 0:01:36]} Qe8 {[%emt 0:03:19]} 32. Kg2 {[%emt 0:00:38]} Kg8 {[%emt 0:05:56]} 33. Qd3 {[%emt 0:00:22]} Qc6 {[%emt 0:01:26]} 34. Qb3 {[%emt 0:00:47]} Qc5 {[%emt 0:02:35]} 35. Qd3 {[%emt 0:02:27]} Rf6 {[%emt 0:00:11]} 36. Qd2 {[%emt 0:00:20]} Qc6 {[%emt 0:00:35]} 37. Qa2 {[%emt 0:02:04]} Rd6 {[%emt 0:02:01]} 38. Qd2 {[%emt 0:00:27]} Re6 {[%emt 0:01:01]} 39. Kh2 {[%emt 0:00:17]} Re5 {[%emt 0:03:32]} 40. a5 {[%emt 0:06:08]} Qe6 {[%emt 0:03:28]} 41. axb6 {[%emt 0:30:12]} axb6 {[%emt 0:03:03]} 42. Kg2 {[%emt 0:00:00]} Re1 {[%emt 0:01:16]} 43. Qg5 {[%emt 0:00:00]} Qe2 {[%emt 0:05:08]} 44. Qxd5 {[%emt 0:00:00]} Qf1+ {[%emt 0:00:11]} 45. Kf3 {[%emt 0:00:00]} Re2 {[%emt 0:00:37]} 0-1

[Event "Skalica Masters 2020"]
[Site "Skalica"]
[Date "2020.08.28"]
[Round "7.1"]
[White "Blohberger, Felix"]
[Black "Jablonicky, Martin"]
[Result "1/2-1/2"]
[ECO "B29"]
[WhiteElo "2467"]
[BlackElo "2314"]
[Annotator "ChessBase"]
[PlyCount "74"]
[EventDate "2020.08.23"]
[EventType "tourn"]
[EventCountry "SVK"]
[SourceTitle "playchess.com"]
[Source "ChessBase"]
[SourceQuality "1"]
[TimeControl "40/5400+30:1800+30"]

1. e4 {[%emt 0:00:00]} c5 {[%emt 0:13:12]} 2. Nf3 {[%emt 0:00:00]} Nf6 {[%emt 0:01:41]} 3. Nc3 {[%emt 0:06:02]} d5 {[%emt 0:05:36]} 4. exd5 {[%emt 0:00:13]} Nxd5 {[%emt 0:01:18]} 5. Bb5+ {[%emt 0:02:04]} Bd7 {[%emt 0:01:20]} 6. a4 {[%emt 0:00:18]} Nxc3 {[%emt 0:04:05]} 7. dxc3 {[%emt 0:02:08]} Nc6 {[%emt 0:00:08]} 8. Bf4 {[%emt 0:01:37]} e6 {[%emt 0:00:47]} 9. Qe2 {[%emt 0:02:07]} a6 {[%emt 0:03:53]} 10. Bxc6 {[%emt 0:16:18]} Bxc6 {[%emt 0:00:06]} 11. Ne5 {[%emt 0:09:02]} Be7 {[%emt 0:09:03]} 12. Rd1 {[%emt 0:12:36]} Qb6 {[%emt 0:04:51]} 13. Nc4 {[%emt 0:01:10]} Qa7 {[%emt 0:00:21]} 14. Nd6+ {[%emt 0:01:23]} Bxd6 {[%emt 0:00:06]} 15. Bxd6 {[%emt 0:00:06]} Qb6 {[%emt 0:05:13]} 16. O-O {[%emt 0:03:58]} O-O-O {[%emt 0:00:26]} 17. Bg3 {[%emt 0:01:07]} Rxd1 {[%emt 0:00:55]} 18. Qxd1 {[%emt 0:03:36]} Qd8 {[%emt 0:00:13]} 19. Qg4 {[%emt 0:03:46]} Qd5 {[%emt 0:00:05]} 20. f3 {[%emt 0:00:37]} g5 {[%emt 0:00:15]} 21. c4 {[%emt 0:04:04]} Qf5 {[%emt 0:06:26]} 22. Qxf5 {[%emt 0:08:46]} exf5 {[%emt 0:00:57]} 23. a5 {[%emt 0:00:27]} Rd8 {[%emt 0:00:21]} 24. Be1 {[%emt 0:04:49]} Rd1 {[%emt 0:02:40]} 25. Bc3 {[%emt 0:00:54]} Rxf1+ {[%emt 0:00:07]} 26. Kxf1 {[%emt 0:00:05]} g4 {[%emt 0:01:40]} 27. Kf2 {[%emt 0:00:08]} gxf3 {[%emt 0:05:42]} 28. gxf3 {[%emt 0:00:11]} Bd7 {[%emt 0:01:02]} 29. Kg3 {[%emt 0:04:00]} Kc7 {[%emt 0:00:12]} 30. Be5+ {[%emt 0:04:38]} Kc6 {[%emt 0:00:07]} 31. Kf4 {[%emt 0:00:17]} b6 {[%emt 0:00:21]} 32. axb6 {[%emt 0:01:26]} Kxb6 {[%emt 0:00:20]} 33. Kg5 {[%emt 0:01:19]} f4 {[%emt 0:00:16]} 34. Bxf4 {[%emt 0:00:43]} Ba4 {[%emt 0:01:01]} 35. b3 {[%emt 0:01:05]} Bc6 {[%emt 0:00:08]} 36. Kg4 {[%emt 0:04:10]} Bd7+ {[%emt 0:00:05]} 37. Kg5 {[%emt 0:00:20]} Bc6 {[%emt 0:00:04]} 1/2-1/2

[Event "Skalica Masters 2020"]
[Site "Skalica"]
[Date "2020.08.28"]
[Round "7.4"]
[White "Druska, Juraj"]
[Black "Sahidi, Samir"]
[Result "1/2-1/2"]
[ECO "C10"]
[WhiteElo "2515"]
[BlackElo "2400"]
[Annotator "ChessBase"]
[PlyCount "85"]
[EventDate "2020.08.23"]
[EventType "tourn"]
[EventCountry "SVK"]
[SourceTitle "playchess.com"]
[Source "ChessBase"]
[SourceQuality "1"]
[TimeControl "40/5400+30:1800+30"]

1. e4 {[%emt 0:01:38]} e6 {[%emt 0:00:23]} 2. d4 {[%emt 0:01:04]} d5 {[%emt 0:00:19]} 3. Nd2 {[%emt 0:01:00]} dxe4 {[%emt 0:01:20]} 4. Nxe4 {[%emt 0:00:06]} Bd7 {[%emt 0:01:35]} 5. Nf3 {[%emt 0:03:06]} Bc6 {[%emt 0:00:36]} 6. Bd3 {[%emt 0:00:05]} Nd7 {[%emt 0:00:28]} 7. O-O {[%emt 0:06:52]} Ngf6 {[%emt 0:02:32]} 8. Ned2 {[%emt 0:00:48]} Be7 {[%emt 0:08:49]} 9. Nc4 {[%emt 0:11:22]} Be4 {[%emt 0:05:58]} 10. Re1 {[%emt 0:05:09]} Bxd3 {[%emt 0:01:56]} 11. Qxd3 {[%emt 0:00:06]} O-O {[%emt 0:01:25]} 12. b3 {[%emt 0:02:52]} c6 {[%emt 0:02:58]} 13. Bf4 {[%emt 0:07:53]} Nd5 {[%emt 0:04:34]} 14. Bg3 {[%emt 0:01:06]} N7f6 {[%emt 0:04:07]} 15. Nce5 {[%emt 0:07:25]} Bb4 {[%emt 0:03:05]} 16. Rf1 {[%emt 0:08:27]} Nh5 {[%emt 0:11:33]} 17. c4 {[%emt 0:06:40]} Ne7 {[%emt 0:06:22]} 18. Rad1 {[%emt 0:05:40]} f6 {[%emt 0:03:46]} 19. Ng4 {[%emt 0:00:40]} Qd7 {[%emt 0:02:34]} 20. Ne3 {[%emt 0:05:48]} Rad8 {[%emt 0:02:54]} 21. Qc2 {[%emt 0:05:12]} Rfe8 {[%emt 0:02:33]} 22. a3 {[%emt 0:00:49]} Nxg3 {[%emt 0:02:14]} 23. hxg3 {[%emt 0:00:11]} Bxa3 {[%emt 0:08:58]} 24. Ra1 {[%emt 0:00:29]} Bb4 {[%emt 0:00:38]} 25. Rxa7 {[%emt 0:01:23]} c5 {[%emt 0:00:48]} 26. Rd1 {[%emt 0:14:22]} Nc6 {[%emt 0:00:51]} 27. dxc5 {[%emt 0:00:10]} Qc7 {[%emt 0:02:40]} 28. Raa1 {[%emt 0:00:46]} Bxc5 {[%emt 0:00:23]} 29. Qe4 {[%emt 0:00:43]} Qb6 {[%emt 0:06:45]} 30. Rxd8 {[%emt 0:00:10]} Nxd8 {[%emt 0:00:28]} 31. Rb1 {[%emt 0:02:21]} Nc6 {[%emt 0:03:25]} 32. g4 {[%emt 0:00:07]} Qd8 {[%emt 0:01:44]} 33. Rd1 {[%emt 0:00:44]} Qe7 {[%emt 0:00:57]} 34. g3 {[%emt 0:00:17]} Ra8 {[%emt 0:01:49]} 35. Kg2 {[%emt 0:00:51]} Ra3 {[%emt 0:00:38]} 36. Re1 {[%emt 0:00:56]} Qd7 {[%emt 0:02:01]} 37. Rd1 {[%emt 0:00:18]} Qe7 {[%emt 0:00:18]} 38. Re1 {[%emt 0:00:30]} Qf7 {[%emt 0:01:25]} 39. Qd3 {[%emt 0:00:22]} Ra8 {[%emt 0:01:19]} 40. Qe4 {[%emt 0:00:46]} h6 {[%emt 0:01:47]} 41. Re2 {[%emt 0:13:54]} Rd8 {[%emt 0:04:12]} 42. Nc2 {[%emt 0:03:04]} Rd6 {[%emt 0:02:15]} 43. Re1 {[%emt 0:07:41]} 1/2-1/2

[Event "Skalica Masters 2020"]
[Site "Skalica"]
[Date "2020.08.28"]
[Round "7.5"]
[White "Saric, Ivan"]
[Black "Yankelevich, Lev"]
[Result "1-0"]
[ECO "C54"]
[WhiteElo "2646"]
[BlackElo "2448"]
[Annotator "ChessBase"]
[PlyCount "77"]
[EventDate "2020.08.23"]
[EventType "tourn"]
[EventCountry "SVK"]
[SourceTitle "playchess.com"]
[Source "ChessBase"]
[SourceQuality "1"]
[TimeControl "40/5400+30:1800+30"]

1. e4 {[%emt 0:01:06]} e5 {[%emt 0:00:00]} 2. Nf3 {[%emt 0:00:07]} Nc6 {[%emt 0:00:00]} 3. Bc4 {[%emt 0:00:37]} Nf6 {[%emt 0:00:00]} 4. d3 {[%emt 0:00:05]} Bc5 {[%emt 0:00:00]} 5. O-O {[%emt 0:00:06]} d6 {[%emt 0:00:00]} 6. c3 {[%emt 0:00:04]} a5 {[%emt 0:00:03]} 7. Re1 {[%emt 0:01:15]} Ba7 {[%emt 0:00:18]} 8. Na3 {[%emt 0:03:38]} h6 {[%emt 0:00:49]} 9. Nc2 {[%emt 0:02:35]} O-O {[%emt 0:04:52]} 10. a4 {[%emt 0:05:38]} Ne7 {[%emt 0:01:41]} 11. d4 {[%emt 0:04:37]} d5 {[%emt 0:16:56]} 12. exd5 {[%emt 0:09:10]} exd4 {[%emt 0:00:38]} 13. d6 {[%emt 0:00:52]} Nf5 {[%emt 0:08:24]} 14. Ncxd4 {[%emt 0:00:54]} Nxd4 {[%emt 0:03:20]} 15. Nxd4 {[%emt 0:17:21]} Qxd6 {[%emt 0:00:43]} 16. Nb5 {[%emt 0:00:20]} Qc5 {[%emt 0:09:36]} 17. Qd4 {[%emt 0:06:40]} Qxb5 {[%emt 0:11:06]} 18. axb5 {[%emt 0:00:36]} Bxd4 {[%emt 0:01:03]} 19. cxd4 {[%emt 0:00:03]} Rd8 {[%emt 0:07:16]} 20. Ra4 {[%emt 0:07:34]} Bf5 {[%emt 0:17:02]} 21. Bd2 {[%emt 0:05:44]} Nd5 {[%emt 0:10:51]} 22. Rxa5 {[%emt 0:00:36]} Rxa5 {[%emt 0:00:58]} 23. Bxa5 {[%emt 0:00:06]} Be6 {[%emt 0:00:32]} 24. Rc1 {[%emt 0:02:29]} Nf4 {[%emt 0:02:46]} 25. Bf1 {[%emt 0:03:15]} Rxd4 {[%emt 0:02:05]} 26. Bxc7 {[%emt 0:00:07]} Nd3 {[%emt 0:00:16]} 27. Rd1 {[%emt 0:02:00]} Rd7 {[%emt 0:00:04]} 28. Bxd3 {[%emt 0:00:30]} Rxc7 {[%emt 0:01:06]} 29. Be4 {[%emt 0:01:40]} Kf8 {[%emt 0:01:14]} 30. f3 {[%emt 0:07:28]} f5 {[%emt 0:00:27]} 31. b6 {[%emt 0:02:52]} Rf7 {[%emt 0:00:01]} 32. Bc6 {[%emt 0:01:56]} Rf6 {[%emt 0:01:19]} 33. Rd8+ {[%emt 0:00:50]} Ke7 {[%emt 0:00:01]} 34. Rb8 {[%emt 0:00:51]} Bd7 {[%emt 0:00:58]} 35. Bxd7 {[%emt 0:00:10]} Kxd7 {[%emt 0:00:02]} 36. Rxb7+ {[%emt 0:00:06]} Kc6 {[%emt 0:00:01]} 37. Rxg7 {[%emt 0:00:17]} Kxb6 {[%emt 0:00:04]} 38. Rd7 {[%emt 0:00:45]} Kc6 {[%emt 0:00:08]} 39. Rd2 {[%emt 0:00:09]} 1-0

[Event "Skalica Masters 2020"]
[Site "Skalica"]
[Date "2020.08.29"]
[Round "8.1"]
[White "Jablonicky, Martin"]
[Black "Yankelevich, Lev"]
[Result "1/2-1/2"]
[ECO "D91"]
[WhiteElo "2314"]
[BlackElo "2461"]
[Annotator "ChessBase"]
[PlyCount "64"]
[EventDate "2020.08.23"]
[EventType "tourn"]
[EventCountry "SVK"]
[SourceTitle "playchess.com"]
[Source "ChessBase"]
[SourceQuality "1"]
[TimeControl "40/5400+30:1800+30"]

1. d4 {[%emt 0:12:01]} Nf6 {[%emt 0:00:00]} 2. Nf3 {[%emt 0:00:04]} g6 {[%emt 0:00:24]} 3. c4 {[%emt 0:00:05]} Bg7 {[%emt 0:00:15]} 4. Nc3 {[%emt 0:00:02]} d5 {[%emt 0:02:26]} 5. Bg5 {[%emt 0:00:19]} Ne4 {[%emt 0:00:10]} 6. cxd5 {[%emt 0:00:04]} Nxg5 {[%emt 0:00:29]} 7. Nxg5 {[%emt 0:00:05]} e6 {[%emt 0:00:05]} 8. Qd2 {[%emt 0:00:03]} h6 {[%emt 0:00:14]} 9. Nf3 {[%emt 0:01:21]} exd5 {[%emt 0:00:06]} 10. e3 {[%emt 0:01:55]} c6 {[%emt 0:01:04]} 11. Bd3 {[%emt 0:00:57]} Nd7 {[%emt 0:00:12]} 12. O-O {[%emt 0:00:13]} a5 {[%emt 0:01:52]} 13. a3 {[%emt 0:01:53]} O-O {[%emt 0:00:24]} 14. b4 {[%emt 0:00:13]} b5 {[%emt 0:07:17]} 15. e4 {[%emt 0:00:28]} Nb6 {[%emt 0:02:42]} 16. exd5 {[%emt 0:00:58]} axb4 {[%emt 0:01:09]} 17. axb4 {[%emt 0:00:09]} Rxa1 {[%emt 0:00:04]} 18. Rxa1 {[%emt 0:00:05]} Nxd5 {[%emt 0:00:06]} 19. Ne4 {[%emt 0:00:07]} Ne7 {[%emt 0:04:46]} 20. Bc2 {[%emt 0:01:12]} Bg4 {[%emt 0:17:45]} 21. Ne5 {[%emt 0:00:24]} Bxe5 {[%emt 0:00:05]} 22. dxe5 {[%emt 0:00:03]} Qxd2 {[%emt 0:00:03]} 23. Nxd2 {[%emt 0:00:07]} Nd5 {[%emt 0:00:01]} 24. Bb3 {[%emt 0:01:25]} Nxb4 {[%emt 0:08:58]} 25. Ne4 {[%emt 0:00:06]} Be6 {[%emt 0:04:18]} 26. Nf6+ {[%emt 0:01:09]} Kg7 {[%emt 0:00:43]} 27. Bxe6 {[%emt 0:00:06]} fxe6 {[%emt 0:00:03]} 28. Ra7+ {[%emt 0:04:26]} Rf7 {[%emt 0:00:03]} 29. Ne8+ {[%emt 0:00:48]} Kg8 {[%emt 0:01:56]} 30. Nf6+ {[%emt 0:00:06]} Kg7 {[%emt 0:00:04]} 31. Ne8+ {[%emt 0:00:45]} Kg8 {[%emt 0:16:31]} 32. Nf6+ {[%emt 0:00:26]} Kg7 {[%emt 0:00:03]} 1/2-1/2

[Event "Skalica Masters 2020"]
[Site "Skalica"]
[Date "2020.08.29"]
[Round "8.4"]
[White "Schwarz, Dusan"]
[Black "Donchenko, Alexander"]
[Result "0-1"]
[ECO "D24"]
[WhiteElo "2297"]
[BlackElo "2657"]
[Annotator "ChessBase"]
[PlyCount "46"]
[EventDate "2020.08.23"]
[EventType "tourn"]
[EventCountry "SVK"]
[SourceTitle "playchess.com"]
[Source "ChessBase"]
[SourceQuality "1"]
[TimeControl "40/5400+30:1800+30"]

1. d4 {[%emt 0:00:00]} Nf6 {[%emt 0:00:00]} 2. c4 {[%emt 0:00:00]} e6 {[%emt 0:00:09]} 3. Nf3 {[%emt 0:00:00]} d5 {[%emt 0:01:01]} 4. Nc3 {[%emt 0:00:39]} dxc4 {[%emt 0:00:48]} 5. e3 {[%emt 0:01:10]} a6 {[%emt 0:00:15]} 6. a4 {[%emt 0:00:47]} b6 {[%emt 0:00:18]} 7. Bxc4 {[%emt 0:00:38]} Bb7 {[%emt 0:00:08]} 8. O-O {[%emt 0:00:52]} Bb4 {[%emt 0:00:29]} 9. Qb3 {[%emt 0:06:19]} Qe7 {[%emt 0:01:08]} 10. d5 {[%emt 0:11:12]} Bxc3 {[%emt 0:12:40]} 11. dxe6 {[%emt 0:00:13]} Bb4 {[%emt 0:09:13]} 12. exf7+ {[%emt 0:00:44]} Kf8 {[%emt 0:00:15]} 13. e4 {[%emt 0:12:30]} Nc6 {[%emt 0:04:16]} 14. e5 {[%emt 0:04:19]} Ne4 {[%emt 0:00:41]} 15. Qc2 {[%emt 0:06:47]} Nxe5 {[%emt 0:02:44]} 16. Nd4 {[%emt 0:02:48]} Nc5 {[%emt 0:06:45]} 17. Bf4 {[%emt 0:11:18]} Nxc4 {[%emt 0:05:44]} 18. Qxc4 {[%emt 0:00:14]} a5 {[%emt 0:01:58]} 19. Nb5 {[%emt 0:21:23]} Qxf7 {[%emt 0:00:27]} 20. Qxf7+ {[%emt 0:01:34]} Kxf7 {[%emt 0:00:02]} 21. Bxc7 {[%emt 0:00:16]} Ba6 {[%emt 0:00:50]} 22. Nd6+ {[%emt 0:02:51]} Ke6 {[%emt 0:00:47]} 23. Rfd1 {[%emt 0:00:15]} Nb3 {[%emt 0:00:14]} 0-1

[Event "Skalica Masters 2020"]
[Site "Skalica"]
[Date "2020.08.29"]
[Round "8.5"]
[White "Blohberger, Felix"]
[Black "Berkes, Ferenc"]
[Result "1/2-1/2"]
[ECO "B12"]
[WhiteElo "2467"]
[BlackElo "2661"]
[Annotator "ChessBase"]
[PlyCount "32"]
[EventDate "2020.08.23"]
[EventType "tourn"]
[EventCountry "SVK"]
[SourceTitle "playchess.com"]
[Source "ChessBase"]
[SourceQuality "1"]
[TimeControl "40/5400+30:1800+30"]

1. e4 {[%emt 0:00:00]} c6 {[%emt 0:00:00]} 2. d4 {[%emt 0:00:16]} d5 {[%emt 0:00:00]} 3. e5 {[%emt 0:00:07]} Bf5 {[%emt 0:01:37]} 4. h4 {[%emt 0:00:07]} h5 {[%emt 0:00:33]} 5. c4 {[%emt 0:00:07]} e6 {[%emt 0:00:08]} 6. Nc3 {[%emt 0:00:08]} dxc4 {[%emt 0:00:54]} 7. Bxc4 {[%emt 0:00:42]} Nd7 {[%emt 0:00:08]} 8. Nge2 {[%emt 0:01:27]} Be7 {[%emt 0:05:25]} 9. Bf4 {[%emt 0:05:32]} Nh6 {[%emt 0:14:38]} 10. g3 {[%emt 0:01:33]} Bg4 {[%emt 0:09:09]} 11. Qd2 {[%emt 0:29:13]} Nb6 {[%emt 0:09:39]} 12. Bb3 {[%emt 0:04:30]} Bf3 {[%emt 0:02:46]} 13. O-O {[%emt 0:08:59]} Nf5 {[%emt 0:02:40]} 14. Bg5 {[%emt 0:03:00]} Bxg5 {[%emt 0:05:21]} 15. hxg5 {[%emt 0:01:20]} g6 {[%emt 0:00:50]} 16. Qf4 {[%emt 0:02:39]} Bxe2 {[%emt 0:02:17]} 1/2-1/2